[Event "Early-Titled-Tuesday-Blitz-February-20-2024"]
[Site "Chess.com"]
[Date "2024.02.20"]
[Round "6"]
[White "N_Mullodzhanov"]
[Black "Orest_Vovk"]
[Result "0-1"]
[WhiteElo "2482"]
[BlackElo "2659"]
[TimeControl "180+1"]
[EndTime "9:09:54 PST"]
[Termination "Orest_Vovk won by checkmate"]

1. e4 {[%clk 0:03:00.9]} 1... g5 {[%clk 0:02:59.9]} 2. d4 {[%clk 0:02:58.8]}
2... g4 {[%clk 0:02:57.4]} 3. Nc3 {[%clk 0:02:49.9]} 3... Bg7 {[%clk 0:02:56.9]}
4. Be3 {[%clk 0:02:48.4]} 4... d6 {[%clk 0:02:56.4]} 5. Qd2 {[%clk 0:02:46.6]}
5... c6 {[%clk 0:02:56.3]} 6. f3 {[%clk 0:02:41]} 6... h5 {[%clk 0:02:55.4]} 7.
O-O-O {[%clk 0:02:35.7]} 7... Qa5 {[%clk 0:02:54.7]} 8. Kb1 {[%clk 0:02:32.1]}
8... Be6 {[%clk 0:02:50.3]} 9. Nge2 {[%clk 0:02:18.5]} 9... b5 {[%clk
0:02:48.4]} 10. d5 {[%clk 0:02:13]} 10... cxd5 {[%clk 0:02:44.1]} 11. Nxd5
{[%clk 0:02:08.9]} 11... Qxd2 {[%clk 0:02:42.5]} 12. Rxd2 {[%clk 0:02:09.1]}
12... Bxd5 {[%clk 0:02:41.2]} 13. Rxd5 {[%clk 0:02:05.6]} 13... a6 {[%clk
0:02:40.4]} 14. fxg4 {[%clk 0:01:46.1]} 14... Nf6 {[%clk 0:02:33.2]} 15. Bd4
{[%clk 0:00:51]} 15... Nxd5 {[%clk 0:02:11.2]} 16. Bxg7 {[%clk 0:00:51.9]} 16...
Rh7 {[%clk 0:02:05.2]} 17. exd5 {[%clk 0:00:48.5]} 17... Rxg7 {[%clk 0:02:04.5]}
18. gxh5 {[%clk 0:00:48.3]} 18... Rg5 {[%clk 0:02:03.8]} 19. Nf4 {[%clk
0:00:45.8]} 19... Nd7 {[%clk 0:01:54.3]} 20. Be2 {[%clk 0:00:36.4]} 20... Nf6
{[%clk 0:01:51]} 21. h4 {[%clk 0:00:36]} 21... Rf5 {[%clk 0:01:48.4]} 22. g3
{[%clk 0:00:36.1]} 22... Kd7 {[%clk 0:01:41.4]} 23. b3 {[%clk 0:00:26.4]} 23...
Rg8 {[%clk 0:01:38.5]} 24. Bd3 {[%clk 0:00:19.5]} 24... Re5 {[%clk 0:01:32.9]}
25. h6 {[%clk 0:00:18.9]} 25... Rh8 {[%clk 0:01:15.8]} 26. h7 {[%clk 0:00:08.8]}
26... Nxh7 {[%clk 0:01:14.5]} 27. Bxh7 {[%clk 0:00:09.6]} 27... Rxh7 {[%clk
0:01:14]} 28. c4 {[%clk 0:00:03.7]} 28... Re3 {[%clk 0:01:04.7]} 29. Rg1 {[%clk
0:00:02.4]} 29... bxc4 {[%clk 0:01:00.5]} 30. bxc4 {[%clk 0:00:02.5]} 30... Rg7
{[%clk 0:01:01]} 31. Nh5 {[%clk 0:00:02.7]} 31... Rg4 {[%clk 0:00:56.9]} 32. Kc2
{[%clk 0:00:02]} 32... Rxc4+ {[%clk 0:00:50.8]} 33. Kd2 {[%clk 0:00:02.5]} 33...
Ra3 {[%clk 0:00:50.9]} 34. g4 {[%clk 0:00:02.9]} 34... Rxa2+ {[%clk 0:00:49.3]}
35. Ke3 {[%clk 0:00:03.4]} 35... Ra3+ {[%clk 0:00:48.1]} 36. Kd2 {[%clk
0:00:04]} 36... Raa4 {[%clk 0:00:45.7]} 37. g5 {[%clk 0:00:02.6]} 37... Rxh4
{[%clk 0:00:44.6]} 38. Ng3 {[%clk 0:00:02.6]} 38... Rhg4 {[%clk 0:00:43.6]} 39.
Kc3 {[%clk 0:00:01.1]} 39... Ra3+ {[%clk 0:00:42.1]} 40. Kb2 {[%clk 0:00:01.3]}
40... Rgxg3 {[%clk 0:00:42.3]} 41. Rf1 {[%clk 0:00:01.8]} 41... Raf3 {[%clk
0:00:39.3]} 42. Re1 {[%clk 0:00:02.2]} 42... Rxg5 {[%clk 0:00:38.6]} 43. Rd1
{[%clk 0:00:02.7]} 43... Rff5 {[%clk 0:00:36.8]} 44. Rc1 {[%clk 0:00:03.3]}
44... Rxd5 {[%clk 0:00:36.7]} 45. Ra1 {[%clk 0:00:03.8]} 45... Ra5 {[%clk
0:00:36.5]} 46. Rb1 {[%clk 0:00:03.7]} 46... Rgb5+ {[%clk 0:00:36.4]} 47. Kc2
{[%clk 0:00:03.6]} 47... Rxb1 {[%clk 0:00:36.5]} 48. Kxb1 {[%clk 0:00:04.5]}
48... f5 {[%clk 0:00:35.6]} 49. Kc2 {[%clk 0:00:05.4]} 49... f4 {[%clk 0:00:36]}
50. Kd3 {[%clk 0:00:06.3]} 50... e5 {[%clk 0:00:35.6]} 51. Ke4 {[%clk
0:00:06.7]} 51... Rc5 {[%clk 0:00:35.8]} 52. Kf5 {[%clk 0:00:07.1]} 52... a5
{[%clk 0:00:36.2]} 53. Ke4 {[%clk 0:00:08]} 53... a4 {[%clk 0:00:36.5]} 54. Kf5
{[%clk 0:00:08.9]} 54... a3 {[%clk 0:00:36.8]} 55. Ke4 {[%clk 0:00:08.9]} 55...
a2 {[%clk 0:00:37.1]} 56. Kf5 {[%clk 0:00:09.8]} 56... a1=R {[%clk 0:00:35.1]}
57. Ke4 {[%clk 0:00:10.7]} 57... Ra4+ {[%clk 0:00:34.1]} 58. Kf5 {[%clk
0:00:11.6]} 58... f3 {[%clk 0:00:34]} 59. Kg5 {[%clk 0:00:10.7]} 59... f2 {[%clk
0:00:34.3]} 60. Kf5 {[%clk 0:00:11.6]} 60... f1=R+ {[%clk 0:00:33]} 61. Kg5
{[%clk 0:00:12.5]} 61... e4+ {[%clk 0:00:32]} 62. Kg4 {[%clk 0:00:13.4]} 62...
e3+ {[%clk 0:00:31.7]} 63. Kg3 {[%clk 0:00:14.3]} 63... e2 {[%clk 0:00:31.4]}
64. Kg2 {[%clk 0:00:15.2]} 64... e1=R {[%clk 0:00:29]} 65. Kg3 {[%clk
0:00:16.1]} 65... d5 {[%clk 0:00:28.9]} 66. Kg2 {[%clk 0:00:16.6]} 66... d4
{[%clk 0:00:29.1]} 67. Kg3 {[%clk 0:00:17.5]} 67... d3 {[%clk 0:00:29.2]} 68.
Kg2 {[%clk 0:00:18.3]} 68... d2 {[%clk 0:00:29.3]} 69. Kg3 {[%clk 0:00:19.2]}
69... d1=R {[%clk 0:00:28.3]} 70. Kg2 {[%clk 0:00:20.1]} 70... Re2+ {[%clk
0:00:23.6]} 71. Kg3 {[%clk 0:00:20.2]} 71... Rd3# {[%clk 0:00:23.6]} 0-1

[Event "Early-Titled-Tuesday-Blitz-February-20-2024"]
[Site "Chess.com"]
[Date "2024.02.20"]
[Round "6"]
[White "ContrVersia"]
[Black "Kunalm64"]
[Result "1-0"]
[WhiteElo "2838"]
[BlackElo "2532"]
[TimeControl "180+1"]
[EndTime "9:09:56 PST"]
[Termination "ContrVersia won by resignation"]

1. Nf3 {[%clk 0:03:00]} 1... Nf6 {[%clk 0:02:59]} 2. c4 {[%clk 0:03:00.2]} 2...
e6 {[%clk 0:02:58.9]} 3. g3 {[%clk 0:03:00.4]} 3... d5 {[%clk 0:02:59]} 4. Bg2
{[%clk 0:03:00.6]} 4... Be7 {[%clk 0:02:58.9]} 5. O-O {[%clk 0:03:00.7]} 5...
O-O {[%clk 0:02:59]} 6. b3 {[%clk 0:03:01]} 6... d4 {[%clk 0:02:53.1]} 7. e3
{[%clk 0:03:00.7]} 7... c5 {[%clk 0:02:52.8]} 8. exd4 {[%clk 0:03:01]} 8... cxd4
{[%clk 0:02:52.9]} 9. Re1 {[%clk 0:03:01.5]} 9... Nc6 {[%clk 0:02:52.7]} 10. Bb2
{[%clk 0:02:59.7]} 10... a5 {[%clk 0:02:45.2]} 11. Na3 {[%clk 0:02:59]} 11...
Re8 {[%clk 0:02:41.3]} 12. Nb5 {[%clk 0:02:58.5]} 12... Bc5 {[%clk 0:02:41.2]}
13. Ne5 {[%clk 0:02:58.2]} 13... Qb6 {[%clk 0:02:36.9]} 14. Nd3 {[%clk
0:02:53.2]} 14... e5 {[%clk 0:02:30.6]} 15. Nxc5 {[%clk 0:02:32.3]} 15... Qxc5
{[%clk 0:02:30]} 16. Ba3 {[%clk 0:02:29.8]} 16... Nb4 {[%clk 0:02:29.5]} 17. Qf3
{[%clk 0:01:57.9]} 17... Bd7 {[%clk 0:02:21]} 18. Qxb7 {[%clk 0:01:50.7]} 18...
Rab8 {[%clk 0:02:20.4]} 19. Qf3 {[%clk 0:01:32.7]} 19... Bxb5 {[%clk 0:01:51.8]}
20. cxb5 {[%clk 0:01:33.6]} 20... Qxb5 {[%clk 0:01:52]} 21. Rec1 {[%clk
0:01:24.8]} 21... e4 {[%clk 0:01:44.1]} 22. Qd1 {[%clk 0:01:21.2]} 22... Nd3
{[%clk 0:01:20]} 23. Rc4 {[%clk 0:01:20.5]} 23... Qf5 {[%clk 0:01:06.8]} 24. Qe2
{[%clk 0:01:17]} 24... Ng4 {[%clk 0:00:58.9]} 25. Rxd4 {[%clk 0:01:10.7]} 25...
Ngxf2 {[%clk 0:00:51.8]} 26. Rf1 {[%clk 0:01:09.4]} 26... Qe5 {[%clk 0:00:40.4]}
27. Qe3 {[%clk 0:01:03.6]} 27... Rbd8 {[%clk 0:00:13.7]} 28. Rxd8 {[%clk
0:01:00.3]} 28... Rxd8 {[%clk 0:00:13.9]} 29. Qa7 {[%clk 0:00:26]} 29... Qd4
{[%clk 0:00:13.1]} 30. Qxd4 {[%clk 0:00:19.7]} 30... Rxd4 {[%clk 0:00:13.3]} 31.
Be7 {[%clk 0:00:12.4]} 31... f5 {[%clk 0:00:12.7]} 32. Bg5 {[%clk 0:00:10.8]}
32... Ng4 {[%clk 0:00:05.2]} 33. Rxf5 {[%clk 0:00:10.4]} 33... h6 {[%clk
0:00:05.3]} 34. Be3 {[%clk 0:00:09.3]} 34... Nxe3 {[%clk 0:00:05.1]} 35. dxe3
{[%clk 0:00:10.2]} 35... Rb4 {[%clk 0:00:05.3]} 36. Rxa5 {[%clk 0:00:09.4]}
36... Nc1 {[%clk 0:00:03.2]} 37. Ra8+ {[%clk 0:00:05]} 37... Kh7 {[%clk
0:00:03]} 38. Kf2 {[%clk 0:00:05.4]} 38... Kg6 {[%clk 0:00:03.3]} 39. Ke1 {[%clk
0:00:04.3]} 39... Nd3+ {[%clk 0:00:03]} 40. Kd2 {[%clk 0:00:04.7]} 40... Ne5
{[%clk 0:00:03.1]} 41. Ra4 {[%clk 0:00:03.7]} 41... Rxa4 {[%clk 0:00:01.9]} 42.
bxa4 {[%clk 0:00:04]} 42... Kf5 {[%clk 0:00:02.4]} 43. Kc3 {[%clk 0:00:03.7]}
43... Nc6 {[%clk 0:00:02.8]} 44. Kc4 {[%clk 0:00:03.1]} 44... Ke5 {[%clk
0:00:03.5]} 45. Kb5 {[%clk 0:00:02.5]} 45... Ne7 {[%clk 0:00:03.6]} 46. a5
{[%clk 0:00:02.7]} 46... Nd5 {[%clk 0:00:04.3]} 47. a6 {[%clk 0:00:02.9]} 47...
Kd6 {[%clk 0:00:05]} 48. a7 {[%clk 0:00:02.6]} 48... Nc3+ {[%clk 0:00:04]} 49.
Kb6 {[%clk 0:00:02.5]} 49... Na4+ {[%clk 0:00:03.4]} 50. Kb7 {[%clk 0:00:02.3]}
50... Nc5+ {[%clk 0:00:03.5]} 51. Kc8 {[%clk 0:00:02.7]} 51... Na4 {[%clk
0:00:02.3]} 52. a8=Q {[%clk 0:00:02.7]} 52... Nb6+ {[%clk 0:00:02.9]} 53. Kb7
{[%clk 0:00:03.4]} 53... Nxa8 {[%clk 0:00:03.8]} 54. Kxa8 {[%clk 0:00:04.3]}
54... Kc5 {[%clk 0:00:04.6]} 55. Bxe4 {[%clk 0:00:04.2]} 1-0

[Event "Early-Titled-Tuesday-Blitz-February-20-2024"]
[Site "Chess.com"]
[Date "2024.02.20"]
[Round "6"]
[White "lluiss"]
[Black "pfalcon1949"]
[Result "0-1"]
[WhiteElo "2171"]
[BlackElo "1987"]
[TimeControl "180+1"]
[EndTime "9:09:57 PST"]
[Termination "pfalcon1949 won on time"]

1. Nf3 {[%clk 0:03:00.9]} 1... c5 {[%clk 0:02:56.6]} 2. c4 {[%clk 0:03:00.3]}
2... Nc6 {[%clk 0:02:56.3]} 3. Nc3 {[%clk 0:03:00.4]} 3... Nf6 {[%clk
0:02:55.7]} 4. d4 {[%clk 0:02:59.8]} 4... cxd4 {[%clk 0:02:54.8]} 5. Nxd4 {[%clk
0:03:00.7]} 5... g6 {[%clk 0:02:53.9]} 6. e4 {[%clk 0:03:00.5]} 6... d6 {[%clk
0:02:51.1]} 7. Be2 {[%clk 0:02:58.3]} 7... Bg7 {[%clk 0:02:50.3]} 8. Be3 {[%clk
0:02:58.7]} 8... O-O {[%clk 0:02:49.6]} 9. O-O {[%clk 0:02:58.6]} 9... Bd7
{[%clk 0:02:41.8]} 10. f3 {[%clk 0:02:58.5]} 10... Nxd4 {[%clk 0:02:41.4]} 11.
Bxd4 {[%clk 0:02:58.1]} 11... Bc6 {[%clk 0:02:41.4]} 12. Qd2 {[%clk 0:02:58.4]}
12... a5 {[%clk 0:02:40.9]} 13. b3 {[%clk 0:02:52.7]} 13... Nd7 {[%clk
0:02:39.1]} 14. Be3 {[%clk 0:02:50.4]} 14... Nc5 {[%clk 0:02:37.5]} 15. Rab1
{[%clk 0:02:07.9]} 15... e6 {[%clk 0:02:26.2]} 16. Rfd1 {[%clk 0:02:06.1]} 16...
Be5 {[%clk 0:02:25.3]} 17. Qe1 {[%clk 0:01:33.9]} 17... f5 {[%clk 0:02:13.5]}
18. exf5 {[%clk 0:01:32]} 18... gxf5 {[%clk 0:02:09.2]} 19. Bd4 {[%clk 0:01:32]}
19... Qf6 {[%clk 0:02:01.1]} 20. Bxe5 {[%clk 0:01:19]} 20... Qxe5 {[%clk
0:01:59.9]} 21. Rbc1 {[%clk 0:01:19.6]} 21... Kh8 {[%clk 0:01:57.9]} 22. Bf1
{[%clk 0:01:19.5]} 22... Qf4 {[%clk 0:01:48.3]} 23. Qg3 {[%clk 0:01:14.4]} 23...
Qxg3 {[%clk 0:01:36.1]} 24. hxg3 {[%clk 0:01:15.3]} 24... Rad8 {[%clk 0:01:33]}
25. Rd2 {[%clk 0:01:07.2]} 25... Rg8 {[%clk 0:01:22.3]} 26. Kf2 {[%clk
0:01:04.2]} 26... Rg7 {[%clk 0:01:21.4]} 27. Rcd1 {[%clk 0:01:04]} 27... Rgd7
{[%clk 0:01:20.7]} 28. Re1 {[%clk 0:00:58.5]} 28... Kg7 {[%clk 0:01:15.3]} 29.
Bd3 {[%clk 0:00:52.3]} 29... Kf6 {[%clk 0:01:14.3]} 30. Bc2 {[%clk 0:00:52.1]}
30... b6 {[%clk 0:01:06.4]} 31. Ne2 {[%clk 0:00:48]} 31... e5 {[%clk 0:00:59.4]}
32. Nc3 {[%clk 0:00:42.9]} 32... Ke6 {[%clk 0:00:51.2]} 33. Rh1 {[%clk
0:00:42.2]} 33... Rg8 {[%clk 0:00:40.3]} 34. Rh5 {[%clk 0:00:41.4]} 34... Rf7
{[%clk 0:00:36.8]} 35. Rd1 {[%clk 0:00:39]} 35... e4 {[%clk 0:00:31.3]} 36. Rdh1
{[%clk 0:00:32.1]} 36... Rfg7 {[%clk 0:00:26.5]} 37. Rh6+ {[%clk 0:00:29.2]}
37... Rg6 {[%clk 0:00:24.5]} 38. fxe4 {[%clk 0:00:21.7]} 38... fxe4 {[%clk
0:00:21.1]} 39. Ke3 {[%clk 0:00:15.8]} 39... Ke5 {[%clk 0:00:16.9]} 40. R1h5+
{[%clk 0:00:14.6]} 40... Rg5 {[%clk 0:00:12.9]} 41. Rxh7 {[%clk 0:00:14.3]}
41... Rxh5 {[%clk 0:00:12]} 42. Rxh5+ {[%clk 0:00:14.1]} 42... Ke6 {[%clk
0:00:12.3]} 43. Rh6+ {[%clk 0:00:13.4]} 43... Kd7 {[%clk 0:00:12.4]} 44. Rh3
{[%clk 0:00:13.3]} 44... Kc7 {[%clk 0:00:12.3]} 45. Bxe4 {[%clk 0:00:04.7]}
45... Nxe4 {[%clk 0:00:11.5]} 46. Nxe4 {[%clk 0:00:04.1]} 46... Rg7 {[%clk
0:00:12]} 47. Rh4 {[%clk 0:00:03.8]} 47... Re7 {[%clk 0:00:11.8]} 48. Kd4 {[%clk
0:00:03.9]} 48... b5 {[%clk 0:00:12.1]} 49. cxb5 {[%clk 0:00:03]} 49... Bxb5
{[%clk 0:00:12.3]} 50. Nc3 {[%clk 0:00:03.5]} 50... Bf1 {[%clk 0:00:11.8]} 51.
Rh6 {[%clk 0:00:03.9]} 51... Bxg2 {[%clk 0:00:11]} 52. Rg6 {[%clk 0:00:04.8]}
52... Bf3 {[%clk 0:00:10.5]} 53. Nd5+ {[%clk 0:00:05.2]} 53... Bxd5 {[%clk
0:00:09.3]} 54. Kxd5 {[%clk 0:00:06.1]} 54... Re3 {[%clk 0:00:09]} 55. Rg7+
{[%clk 0:00:06.4]} 55... Kb6 {[%clk 0:00:08.4]} 56. Kxd6 {[%clk 0:00:06.7]}
56... Re2 {[%clk 0:00:07.8]} 57. g4 {[%clk 0:00:06.3]} 57... Rxa2 {[%clk
0:00:08.7]} 58. g5 {[%clk 0:00:06.6]} 58... Kb5 {[%clk 0:00:09.4]} 59. g6 {[%clk
0:00:06.7]} 59... Rg2 {[%clk 0:00:09.9]} 60. Rb7+ {[%clk 0:00:06.3]} 60... Ka6
{[%clk 0:00:08.6]} 61. g7 {[%clk 0:00:07.2]} 61... Kxb7 {[%clk 0:00:07.7]} 62.
Ke6 {[%clk 0:00:06.7]} 62... Rxg7 {[%clk 0:00:08.1]} 0-1

[Event "Early-Titled-Tuesday-Blitz-February-20-2024"]
[Site "Chess.com"]
[Date "2024.02.20"]
[Round "6"]
[White "Mops_2004"]
[Black "LiadCuba"]
[Result "1-0"]
[WhiteElo "2725"]
[BlackElo "2518"]
[TimeControl "180+1"]
[EndTime "9:10:03 PST"]
[Termination "Mops_2004 won by checkmate"]

1. g3 {[%clk 0:03:00.9]} 1... d5 {[%clk 0:02:58.5]} 2. Nf3 {[%clk 0:03:00.5]}
2... Nf6 {[%clk 0:02:58.1]} 3. Bg2 {[%clk 0:03:01]} 3... c5 {[%clk 0:02:58.6]}
4. O-O {[%clk 0:03:01.4]} 4... Nc6 {[%clk 0:02:59]} 5. d4 {[%clk 0:03:02.1]}
5... e6 {[%clk 0:02:58.8]} 6. c4 {[%clk 0:03:02.5]} 6... dxc4 {[%clk 0:02:59]}
7. Qa4 {[%clk 0:03:02.7]} 7... Bd7 {[%clk 0:02:58.8]} 8. Qxc4 {[%clk 0:03:01.9]}
8... b5 {[%clk 0:02:59.1]} 9. Qd3 {[%clk 0:03:02.1]} 9... c4 {[%clk 0:02:58.4]}
10. Qd1 {[%clk 0:03:02.2]} 10... Be7 {[%clk 0:02:53.2]} 11. Bf4 {[%clk
0:03:02.2]} 11... O-O {[%clk 0:02:52.7]} 12. a3 {[%clk 0:02:48.2]} 12... Rc8
{[%clk 0:02:41.4]} 13. Nc3 {[%clk 0:02:47.8]} 13... Qb6 {[%clk 0:02:41.5]} 14.
e4 {[%clk 0:02:45.9]} 14... Rfd8 {[%clk 0:02:40.8]} 15. d5 {[%clk 0:02:30.7]}
15... exd5 {[%clk 0:02:39.2]} 16. e5 {[%clk 0:02:30]} 16... Ne4 {[%clk
0:02:24.4]} 17. Nxd5 {[%clk 0:02:28.9]} 17... Qc5 {[%clk 0:02:20.3]} 18. Be3
{[%clk 0:02:20.6]} 18... Be6 {[%clk 0:02:16.6]} 19. Bxc5 {[%clk 0:02:19.2]}
19... Bxc5 {[%clk 0:02:17.5]} 20. Nd2 {[%clk 0:02:05.6]} 20... Bxd5 {[%clk
0:02:14.3]} 21. Nxe4 {[%clk 0:01:58.2]} 21... Bxe4 {[%clk 0:02:15.2]} 22. Bxe4
{[%clk 0:01:27.6]} 22... Rxd1 {[%clk 0:02:14.3]} 23. Raxd1 {[%clk 0:01:28.5]}
23... Nxe5 {[%clk 0:02:13.5]} 24. Rd5 {[%clk 0:01:28.4]} 24... f6 {[%clk
0:02:04]} 25. Bf5 {[%clk 0:01:24.3]} 25... Rc7 {[%clk 0:01:59.5]} 26. Kg2 {[%clk
0:01:15.6]} 26... g6 {[%clk 0:01:56]} 27. Be4 {[%clk 0:01:12.5]} 27... Kf7
{[%clk 0:01:53.6]} 28. h3 {[%clk 0:01:08]} 28... Be7 {[%clk 0:01:45.8]} 29. f4
{[%clk 0:01:05.2]} 29... Nd7 {[%clk 0:01:42.5]} 30. Rxb5 {[%clk 0:01:04.4]}
30... Nb6 {[%clk 0:01:42.3]} 31. Rc1 {[%clk 0:00:58.7]} 31... f5 {[%clk
0:01:32]} 32. Bd5+ {[%clk 0:00:58.1]} 32... Kf6 {[%clk 0:01:30.1]} 33. Kf3
{[%clk 0:00:56.1]} 33... h5 {[%clk 0:01:25.6]} 34. Rc2 {[%clk 0:00:51.3]} 34...
Bf8 {[%clk 0:01:20.2]} 35. a4 {[%clk 0:00:48.9]} 35... Nxd5 {[%clk 0:00:56.6]}
36. Rxd5 {[%clk 0:00:48.5]} 36... Bb4 {[%clk 0:00:56.3]} 37. Rd4 {[%clk
0:00:46.9]} 37... a5 {[%clk 0:00:54.5]} 38. Rcxc4 {[%clk 0:00:45.4]} 38... Re7
{[%clk 0:00:53.3]} 39. Rxb4 {[%clk 0:00:43.6]} 39... axb4 {[%clk 0:00:53.3]} 40.
Rxb4 {[%clk 0:00:44.5]} 40... Re1 {[%clk 0:00:50.5]} 41. Rb6+ {[%clk 0:00:44.1]}
41... Kf7 {[%clk 0:00:50.6]} 42. h4 {[%clk 0:00:42.9]} 42... Ra1 {[%clk
0:00:48.9]} 43. b3 {[%clk 0:00:43]} 43... Rf1+ {[%clk 0:00:43.5]} 44. Ke2 {[%clk
0:00:41.7]} 44... Rg1 {[%clk 0:00:43.2]} 45. Kf2 {[%clk 0:00:42.1]} 45... Ra1
{[%clk 0:00:42.5]} 46. Rb5 {[%clk 0:00:42.3]} 46... Ke6 {[%clk 0:00:41.6]} 47.
a5 {[%clk 0:00:42.1]} 47... Ra2+ {[%clk 0:00:42]} 48. Kf3 {[%clk 0:00:40.5]}
48... Ra1 {[%clk 0:00:41.9]} 49. b4 {[%clk 0:00:39.9]} 49... Ra3+ {[%clk
0:00:37.1]} 50. Kg2 {[%clk 0:00:40.2]} 50... Ra2+ {[%clk 0:00:37.6]} 51. Kh3
{[%clk 0:00:40.5]} 51... Kd6 {[%clk 0:00:35.1]} 52. Rb6+ {[%clk 0:00:39.9]}
52... Kd5 {[%clk 0:00:35.5]} 53. Rxg6 {[%clk 0:00:39.3]} 53... Ke4 {[%clk
0:00:35.9]} 54. Rc6 {[%clk 0:00:30.1]} 54... Ra3 {[%clk 0:00:28.1]} 55. a6
{[%clk 0:00:27.8]} 55... Kf3 {[%clk 0:00:23.5]} 56. b5 {[%clk 0:00:28]} 56...
Ra1 {[%clk 0:00:23.6]} 57. Rc3+ {[%clk 0:00:27.9]} 57... Kf2 {[%clk 0:00:23.1]}
58. Kh2 {[%clk 0:00:28.1]} 58... Ra2 {[%clk 0:00:17.9]} 59. Rc1 {[%clk
0:00:20.8]} 59... Kf3+ {[%clk 0:00:15.8]} 60. Kh3 {[%clk 0:00:21.2]} 60... Kf2
{[%clk 0:00:13.6]} 61. Rb1 {[%clk 0:00:19.5]} 61... Ra3 {[%clk 0:00:13.7]} 62.
Kh2 {[%clk 0:00:18.9]} 62... Ra2 {[%clk 0:00:09.3]} 63. b6 {[%clk 0:00:19.3]}
63... Kf3+ {[%clk 0:00:09.6]} 64. Kh3 {[%clk 0:00:19.2]} 64... Ra3 {[%clk
0:00:08.7]} 65. b7 {[%clk 0:00:18.5]} 65... Kf2 {[%clk 0:00:09]} 66. Rb2+ {[%clk
0:00:18.3]} 66... Kg1 {[%clk 0:00:08.6]} 67. b8=Q {[%clk 0:00:16.2]} 67... Ra1
{[%clk 0:00:06.6]} 68. Qb6+ {[%clk 0:00:15.4]} 68... Kh1 {[%clk 0:00:06.1]} 69.
Qc6+ {[%clk 0:00:15.6]} 69... Kg1 {[%clk 0:00:05.5]} 70. Qg2# {[%clk 0:00:16.5]}
1-0

[Event "Early-Titled-Tuesday-Blitz-February-20-2024"]
[Site "Chess.com"]
[Date "2024.02.20"]
[Round "6"]
[White "fighter2jz"]
[Black "TigrVShlyape"]
[Result "1-0"]
[WhiteElo "2790"]
[BlackElo "2910"]
[TimeControl "180+1"]
[EndTime "9:10:06 PST"]
[Termination "fighter2jz won on time"]

1. e4 {[%clk 0:02:35.5]} 1... e5 {[%clk 0:02:57.7]} 2. Nf3 {[%clk 0:02:35.6]}
2... Nc6 {[%clk 0:02:57.8]} 3. Bb5 {[%clk 0:02:35.9]} 3... Nf6 {[%clk
0:02:53.1]} 4. Nc3 {[%clk 0:02:25.7]} 4... Nd4 {[%clk 0:02:47.7]} 5. Bc4 {[%clk
0:02:21.8]} 5... Bc5 {[%clk 0:02:43.8]} 6. O-O {[%clk 0:02:19]} 6... d6 {[%clk
0:02:40.5]} 7. h3 {[%clk 0:01:48.9]} 7... Be6 {[%clk 0:02:35.4]} 8. Bxe6 {[%clk
0:01:46.9]} 8... Nxe6 {[%clk 0:02:35]} 9. d3 {[%clk 0:01:46.7]} 9... a6 {[%clk
0:02:31]} 10. Be3 {[%clk 0:01:47]} 10... Bxe3 {[%clk 0:02:18.4]} 11. fxe3 {[%clk
0:01:47.9]} 11... O-O {[%clk 0:02:16.7]} 12. Qe1 {[%clk 0:01:44.6]} 12... Nd7
{[%clk 0:02:14.9]} 13. Qg3 {[%clk 0:01:42.6]} 13... b5 {[%clk 0:02:06.5]} 14.
Rf2 {[%clk 0:01:40.1]} 14... b4 {[%clk 0:02:05.1]} 15. Ne2 {[%clk 0:01:39.8]}
15... Kh8 {[%clk 0:01:58.8]} 16. Raf1 {[%clk 0:01:39.6]} 16... Qe7 {[%clk
0:01:57.3]} 17. Nh4 {[%clk 0:01:38.7]} 17... g6 {[%clk 0:01:56.9]} 18. Qg4
{[%clk 0:01:37.5]} 18... Ng7 {[%clk 0:01:29.9]} 19. d4 {[%clk 0:01:29.6]} 19...
Kg8 {[%clk 0:01:24.9]} 20. d5 {[%clk 0:01:24.4]} 20... Kh8 {[%clk 0:01:21.9]}
21. Ng3 {[%clk 0:01:16.3]} 21... a5 {[%clk 0:01:19.1]} 22. Ne2 {[%clk 0:01:01]}
22... a4 {[%clk 0:01:11.8]} 23. Rf3 {[%clk 0:00:57.2]} 23... Rab8 {[%clk
0:01:04.6]} 24. R3f2 {[%clk 0:00:55.6]} 24... Rbc8 {[%clk 0:00:46.8]} 25. c3
{[%clk 0:00:51.2]} 25... bxc3 {[%clk 0:00:43.5]} 26. Nxc3 {[%clk 0:00:52.1]}
26... Ra8 {[%clk 0:00:40.8]} 27. Nf3 {[%clk 0:00:47.3]} 27... f5 {[%clk
0:00:31.7]} 28. exf5 {[%clk 0:00:42]} 28... Nxf5 {[%clk 0:00:28.2]} 29. Re1
{[%clk 0:00:24.8]} 29... Nc5 {[%clk 0:00:21.9]} 30. Qc4 {[%clk 0:00:23.5]} 30...
Rfb8 {[%clk 0:00:18.6]} 31. e4 {[%clk 0:00:21.3]} 31... Ng3 {[%clk 0:00:15.8]}
32. Nd2 {[%clk 0:00:19.7]} 32... Nh5 {[%clk 0:00:15.8]} 33. Ref1 {[%clk
0:00:19.1]} 33... Nf4 {[%clk 0:00:15.4]} 34. Ne2 {[%clk 0:00:19.1]} 34... Ncd3
{[%clk 0:00:10.4]} 35. Nxf4 {[%clk 0:00:15.9]} 35... Nxf4 {[%clk 0:00:09.4]} 36.
Qc3 {[%clk 0:00:14.4]} 36... Kg8 {[%clk 0:00:08.9]} 37. Kh2 {[%clk 0:00:14]}
37... Nh5 {[%clk 0:00:05.7]} 38. Nc4 {[%clk 0:00:12.4]} 38... Rf8 {[%clk
0:00:04.9]} 39. Na5 {[%clk 0:00:12.5]} 39... Rxf2 {[%clk 0:00:04]} 40. Rxf2
{[%clk 0:00:13.4]} 40... Qh4 {[%clk 0:00:03.8]} 41. Qf3 {[%clk 0:00:12.3]} 41...
Qf4+ {[%clk 0:00:03.2]} 42. Qxf4 {[%clk 0:00:12.5]} 42... exf4 {[%clk
0:00:03.1]} 43. Nc6 {[%clk 0:00:11.7]} 43... Re8 {[%clk 0:00:03.3]} 44. Rf3
{[%clk 0:00:04.5]} 44... Rxe4 {[%clk 0:00:02.8]} 45. b3 {[%clk 0:00:05.4]} 45...
axb3 {[%clk 0:00:02.5]} 46. Rxb3 {[%clk 0:00:06.3]} 46... Re2 {[%clk 0:00:02.4]}
47. a4 {[%clk 0:00:04.6]} 47... Ra2 {[%clk 0:00:02.5]} 48. a5 {[%clk 0:00:03.9]}
48... Ng3 {[%clk 0:00:02.1]} 49. Rb4 {[%clk 0:00:03.5]} 49... g5 {[%clk
0:00:01.8]} 50. h4 {[%clk 0:00:04.1]} 50... h6 {[%clk 0:00:02.1]} 51. hxg5
{[%clk 0:00:04.5]} 51... hxg5 {[%clk 0:00:02.6]} 52. Kh3 {[%clk 0:00:05.1]}
52... Kf7 {[%clk 0:00:02.9]} 53. Rb7 {[%clk 0:00:04.6]} 53... Kg6 {[%clk
0:00:02.5]} 54. Rxc7 {[%clk 0:00:04.8]} 54... Ra1 {[%clk 0:00:01.9]} 55. Kg4
{[%clk 0:00:04.6]} 55... Rh1 {[%clk 0:00:01.5]} 56. Rd7 {[%clk 0:00:03.6]} 1-0